fUSD/lending_fUSD_20240227
["ID","MTS","AMOUNT","RATE_DAILY","PERIOD"]
[315466928,1709059841038,-39235.9247678,0.00022291,2]
[315466929,1709059841050,-1454.55500004,0.00022291,2]
[315466930,1709059841062,-267.89659967,0.00022291,2]
[315467011,1709059843387,-745.27812485,0.00022291,2]
[315467012,1709059843508,-688.075016,0.00022291,2]
[315467013,1709059843635,-307.40749586,0.00021923,2]
[315467019,1709059846491,-692.59250414,0.00021923,2]
[315467020,1709059846500,-1446.32252759,0.00022291,2]
[315467021,1709059846558,-156161.94796405,0.00022291,2]
[315467022,1709059846569,-406.57612128,0.000223,2]
[315467023,1709059846580,-162.31346084,0.000224,2]
[315467024,1709059846591,-1999.0,0.000226,2]
[315467025,1709059846602,-248.0,0.00022633,2]
[315467026,1709059846613,-1294.44000001,0.0002264,6]
[315467027,1709059846622,-1294.44000001,0.00022641,6]
[315467029,1709059846632,-157.03,0.00022648,2]
[315467030,1709059846641,-1294.44000001,0.00022655,6]
[315467031,1709059846651,-1294.44000001,0.00022666,6]
[315467032,1709059846661,-615.158844,0.00022676,2]
[315467033,1709059846670,-1931.0,0.000227,2]
[315467034,1709059846680,-1000.0,0.000227,2]
[315467035,1709059846692,-1019.0,0.000227,2]
[315467036,1709059846701,-1000.0,0.000227,2]
[315467037,1709059846711,-275.9,0.00022719,2]
[315467038,1709059846722,-1636.88186092,0.00022757,2]
[315467039,1709059846731,-164.74,0.00022801,2]
[315467040,1709059846741,-1500.0,0.00022813,2]
[315467041,1709059846750,-800.0,0.00022815,2]
[315467042,1709059846759,-200.0,0.00022815,2]
[315467043,1709059846770,-200.0,0.00022816,2]
[315467044,1709059846779,-800.0,0.00022816,2]
[315467045,1709059846789,-200.0,0.00022816,2]
[315467046,1709059846798,-500.0,0.00022816,2]
[315467047,1709059846807,-1500.0,0.00022822,2]
[315467048,1709059846817,-1500.0,0.00022825,2]
[315467049,1709059846827,-1500.0,0.00022844,2]
[315467050,1709059846838,-150.0,0.00022859,2]
[315467051,1709059846848,-150.0,0.0002286,2]
[315467052,1709059846857,-150.0,0.00022865,2]
[315467053,1709059846867,-150.0,0.00022868,2]
[315467054,1709059846876,-150.0,0.00022871,2]
[315467055,1709059846885,-150.0,0.00022876,2]
[315467056,1709059846894,-150.0,0.00022878,2]
[315467057,1709059846903,-7562.86260098,0.0002288,2]
[315467063,1709060487111,18451.81466037,0.0003,120]
[315467065,1709060732132,-946.39781425,0.00019519,2]
[315467066,1709060732151,-195.88103535,0.00019521,2]
[315467067,1709060732170,-445.25,0.00019523,2]
[315467068,1709060732189,-228.64090341,0.00019842,2]
[315467069,1709060732209,-162.31346084,0.000199,2]
[315467070,1709060732230,-150.0,0.00019999,2]
[315467071,1709060732250,-3692.93460527,0.0002,2]
[315467072,1709060732270,-6653.0,0.0002,2]
[315467073,1709060732289,-7564.22415613,0.0002,2]
[315467074,1709060732310,-2545.4,0.0002,2]
[315467075,1709060732329,-250.0,0.00021395,2]
[315467076,1709060732349,-250.0,0.00021433,2]
[315467077,1709060732368,-317.95,0.0002144,2]
[315467078,1709060732390,-1523.54,0.00021441,2]
[315467079,1709060732413,-200.0,0.00021519,2]
[315467080,1709060732434,-246.81,0.00021546,2]
[315467081,1709060732454,-2518.58,0.00021671,2]
[315467082,1709060732475,-445.25,0.00021787,2]
[315467083,1709060732499,-2493.94,0.00021815,2]
[315467084,1709060732520,-3520.54230486,0.000219,2]
[315467085,1709060795112,-201.03365337,0.00021898,2]
[315467086,1709060836138,-158.97,0.0002152,2]
[315467087,1709060836163,-840.0,0.0002176,2]
[315467088,1709060836183,-205.67,0.0002176,2]
[315467089,1709060836202,-83.55195622,0.00021898,2]
[315467090,1709060836222,-946.39781425,0.00021898,2]
[315467091,1709060836243,-3466.69211859,0.00021898,2]
[315467092,1709060838117,-11342.28094057,0.00021898,2]
[315467093,1709060838149,-155.0,0.00021899,2]
[315467094,1709060838170,-2760.49221325,0.000219,2]
[315467102,1709061031482,-284.58560959,0.00021817,2]
[315467103,1709061031492,-28.5436915,0.00021817,2]
[315467104,1709061031505,-917.85412275,0.00021817,2]
[315467105,1709061031517,-169.269073,0.00021818,2]
[315467106,1709061031527,-2530.64,0.00021826,2]
[315467107,1709061031538,-2550.8,0.0002183,2]
[315467108,1709061031547,-2545.77,0.00021838,2]
[315467109,1709061031558,-2501.56,0.00021849,2]
[315467110,1709061031568,-2490.02,0.00021867,2]
[315467111,1709061031577,-2538.11,0.00021895,2]
[315467112,1709061031587,-824.90288082,0.00021898,2]
[315467113,1709061031633,-241.59371918,0.00021898,2]
[315467114,1709061031643,-300.0,0.00021899,2]
[315467115,1709061031652,-349.55827949,0.000219,2]
[315467116,1709061031709,-7650.44172051,0.000219,2]
[315467117,1709061031721,-154.25,0.00021918,2]
[315467118,1709061031730,-169.26907299,0.00021959,2]
[315467119,1709061031739,-1750.0,0.00022,3]
[315467120,1709061031748,-2572.55,0.00022024,2]
[315467121,1709061031757,-169.26907299,0.000221,2]
[315467122,1709061031767,-2550.9,0.00022142,2]
[315467123,1709061031777,-162.43,0.00022193,2]
[315467124,1709061031786,-9177.0,0.000222,2]
[315467125,1709061031796,-1838.84,0.000222,2]
[315467126,1709061031805,-508.85,0.000222,2]
[315467127,1709061031815,-407.07,0.000222,2]
[315467128,1709061031825,-151.0,0.00022235,2]
[315467129,1709061031834,-151.0,0.00022241,2]
[315467130,1709061031844,-151.0,0.00022241,2]
[315467131,1709061031854,-151.0,0.00022242,2]
[315467132,1709061031863,-207.0,0.00022322,2]
[315467133,1709061031873,-2554.56,0.00022358,2]
[315467134,1709061031883,-16180.803,0.00022358,2]
[315467135,1709061031892,-28628.13,0.00022364,2]
[315467136,1709061031902,-407.07,0.000224,2]
[315467137,1709061031911,-407.07,0.000224,2]
[315467138,1709061031921,-258.43377631,0.0002244,2]
[315467139,1709061031930,-10251.0272,0.00022462,2]
[315467140,1709061031939,-271.05074752,0.000225,2]
[315467141,1709061031949,-154.37269712,0.000226,2]
[315467142,1709061031968,-916.49584409,0.000226,2]
[315467143,1709061031980,-928.13145879,0.000226,2]
[315467144,1709061031990,-271.05074751,0.0002265,2]
[315467145,1709061031999,-150.0,0.0002272,2]
[315467146,1709061032009,-150.0,0.00022721,2]
[315467147,1709061032019,-150.0,0.00022724,2]
[315467148,1709061032028,-150.0,0.00022726,2]
[315467149,1709061032038,-150.0,0.00022726,2]
[315467150,1709061032048,-150.0,0.00022733,2]
[315467151,1709061032057,-150.0,0.00022751,2]
[315467152,1709061032067,-150.0,0.0002276,2]
[315467153,1709061032076,-150.0,0.0002277,2]
[315467154,1709061032086,-300.0,0.00022771,2]
[315467155,1709061032096,-150.0,0.00022798,2]
[315467156,1709061032105,-4911.4183,0.000228,2]
[315467157,1709061032114,-1464.7713742,0.000228,2]
[315467158,1709061032124,-591.8929,0.000228,2]
[315467159,1709061032133,-271.05074751,0.000228,2]
[315467160,1709061032143,-205.011551,0.00022816,2]
[315467161,1709061032152,-800.0,0.00022816,2]
[315467162,1709061032161,-200.0,0.00022816,2]
[315467163,1709061032170,-500.0,0.00022816,2]
[315467164,1709061032180,-150.0,0.00022818,2]
[315467165,1709061032189,-150.0,0.00022836,2]
[315467166,1709061032199,-150.0,0.00022856,2]
[315467167,1709061032208,-150.0,0.00022859,2]
[315467168,1709061032218,-150.0,0.00022881,2]
[315467169,1709061032227,-150.0,0.00022883,2]
[315467170,1709061032237,-182.54,0.0002289,2]
[315467171,1709061032246,-185.89916817,0.0002289,2]
[315467172,1709061032255,-300.0,0.00022891,2]
[315467173,1709061032264,-150.0,0.00022892,2]
[315467174,1709061032273,-150.0,0.00022897,2]
[315467175,1709061032282,-155.0,0.00022898,2]
[315467176,1709061032291,-699.15597181,0.00022898,2]
[315467177,1709061032303,-70201.72786698,0.000229,4]
[315467178,1709061032315,-326.40709261,0.000229,4]
[315467219,1709061037416,-151.0,0.00022439,2]
[315467220,1709061037426,-301.30908736,0.00022439,2]
[315467221,1709061037438,-211.80498335,0.000229,2]
[315467222,1709061037448,-187951.59029731,0.000229,4]
[315467223,1709061037482,-2939.30541,0.000229,4]
[315467224,1709061037548,-2878.79605354,0.000229,4]
[315467225,1709061037560,-1214.92060243,0.000229,4]
[315467226,1709061037573,-6005.026,0.000229,4]
[315467227,1709061037797,-57851.88947258,0.000229,4]
[315467231,1709061040046,-278.5,0.0002289,3]
[315467232,1709061040059,-767.13579465,0.000229,4]
[315467233,1709061040073,-3125.18706403,0.000229,4]
[315467234,1709061040090,-17281.74036797,0.000229,4]
[315467235,1709061040180,-516.56463468,0.00022842,2]
[315467236,1709061040193,-85077.85497728,0.000229,4]
[315467237,1709061040255,-402.926715,0.000229,4]
[315467238,1709061040271,-3676.74294572,0.000229,4]
[315467239,1709061040289,-590.48082854,0.000229,4]
[315467240,1709061040305,-382.1632472,0.000229,4]
[315467289,1709061042473,-11406.04086522,0.000229,4]
[315467293,1709061042549,-2220.10771618,0.000229,4]
[315467294,1709061042569,-1630.36944164,0.000229,4]
[315467296,1709061042587,-1633.220001,0.000229,4]
[315467298,1709061042613,-3099.60006,0.000229,4]
[315467299,1709061042630,-3216.3000001,0.000229,4]
[315467300,1709061042647,-4850.25000001,0.000229,4]
[315467301,1709061042677,-1648.70049761,0.000229,4]
[315467302,1709061042692,-1115.76048818,0.000229,4]
[315467303,1709061042708,-49799.27872006,0.000229,4]
[315467304,1709061042724,-7076.18452054,0.000229,4]
[315467305,1709061042741,-475.67259041,0.000229,4]
[315467306,1709061042768,-669.42198047,0.000229,4]
[315467307,1709061042783,-6930.27784016,0.000229,4]
[315467308,1709061042798,-4225.60717384,0.000229,4]
[315467309,1709061042849,-99262.7898774,0.000229,4]
[315467310,1709061042862,-2634.388,0.000229,2]
[315467311,1709061042874,-151.30006612,0.000229,2]
[315467312,1709061042886,-4837.3567804,0.000229,2]
[315467313,1709061042900,-2715.0,0.000229,2]
[315467314,1709061042912,-185.50816278,0.000229,2]
[315467315,1709061042923,-274.45333334,0.000229,2]
[315467316,1709061042935,-873.09446317,0.000229,6]
[315467317,1709061042946,-222.66239331,0.000229,2]
[315467318,1709061042957,-3480.31391364,0.000229,2]
[315467320,1709061042968,-151.0,0.00022907,2]
[315467322,1709061042980,-150.0,0.00022914,2]
[315467324,1709061042992,-150.0,0.00022921,2]
[315467325,1709061043009,-150.0,0.00022921,2]
[315467326,1709061043021,-150.0,0.00022942,2]
[315467327,1709061043034,-150.0,0.00022942,2]
[315467328,1709061043046,-4112.0,0.00022943,2]
[315467329,1709061043058,-2297.0,0.00022943,2]
[315467330,1709061043070,-16293.352,0.00022943,2]
[315467331,1709061043086,-5221.257,0.00022943,2]
[315467332,1709061043097,-8192.0,0.00022943,2]
[315467333,1709061043110,-5645.0,0.00022943,2]
[315467334,1709061043122,-19915.0,0.00022943,2]
[315467335,1709061043133,-2940.63,0.00022943,2]
[315467336,1709061043145,-1040.0,0.00022943,2]
[315467337,1709061043157,-150.0,0.00022944,2]
[315467338,1709061043168,-158.97,0.0002295,2]
[315467339,1709061043180,-150.0,0.00022953,2]
[315467340,1709061043192,-28.75741868,0.00022955,2]
[315467345,1709061045406,-121.24258132,0.00022955,2]
[315467346,1709061045415,-150.0,0.00022956,2]
[315467347,1709061045424,-1464.77137418,0.00022957,2]
[315467348,1709061045435,-615.158844,0.00022959,2]
[315467349,1709061045445,-150.0,0.00022963,2]
[315467350,1709061045455,-152.0,0.00022967,3]
[315467351,1709061045465,-151.30006612,0.00022969,2]
[315467352,1709061045477,-799.47267127,0.00022973,2]
[315467353,1709061045495,-2994.46011757,0.00022973,2]
[315467354,1709061045503,-16530.59202919,0.00022973,2]
[315467355,1709061045512,-2003.2078289,0.00022973,2]
[315467356,1709061045522,-3543.43056052,0.00022973,2]
[315467357,1709061045531,-177.17152803,0.00022973,2]
[315467358,1709061045540,-150.0,0.00022975,2]
[315467359,1709061045550,-9057.82271899,0.0002298,2]
[315467360,1709061045561,-3804.01796528,0.0002298,2]
[315467361,1709061045572,-150.0,0.00022984,2]
[315467362,1709061045581,-150.0,0.00022985,2]
[315467363,1709061045590,-150.0,0.00022988,2]
[315467364,1709061045599,-150.0,0.00022989,2]
[315467365,1709061045608,-150.0,0.0002299,2]
[315467366,1709061045617,-4837.35678031,0.00022991,2]
[315467367,1709061045626,-150.0,0.00022992,2]
[315467368,1709061045635,-1500.0,0.00022993,2]
[315467369,1709061045645,-1219.95728187,0.00022994,2]
[315467370,1709061045657,-2173.85899804,0.00022994,2]
[315467371,1709061045669,-1461.24925,0.00022994,2]
[315467372,1709061045681,-1482.846,0.00022994,2]
[315467373,1709061045803,-3e-08,0.00022994,2]
[315467374,1709061045815,-9986.65396146,0.00022994,2]
[315467375,1709061045824,-2450.2434577,0.00022994,2]
[315467376,1709061045835,-193.9140427,0.00022994,2]
[315467377,1709061045844,-810.4719781,0.00022994,2]
[315467378,1709061045854,-387.2315158,0.00022999,2]
[315467379,1709061045864,-450.40801529,0.00022999,2]
[315467380,1709061045874,-458.86042339,0.00022999,2]
[315467381,1709061045884,-376.48504455,0.00022999,2]
[315467382,1709061045893,-188.8663576,0.00022999,2]
[315467383,1709061045906,-210.80445032,0.00022999,2]
[315467384,1709061045915,-439.63808946,0.00022999,2]
[315467385,1709061045925,-3749.99976174,0.00023,4]
[315467386,1709061045939,-20483.23907923,0.00023,4]
[315467390,1709061045970,-513.07555839,0.00023,4]
[315467393,1709061045983,-863.30165806,0.00023,4]
[315467395,1709061046000,-2079.48690912,0.00023,4]
[315467404,1709061351676,151.0,0.00029763,120]
[315467414,1709061883668,151.0,0.00029779,120]
[315467415,1709062051149,-946.39781425,0.00019197,2]
[315467416,1709062051172,-284.58560959,0.00019198,2]
[315467417,1709062051192,-228.64090341,0.00019199,2]
[315467418,1709062051213,-1075.78862621,0.000192,2]
[315467419,1709062051235,-451.67,0.00019586,2]
[315467420,1709062051257,-158.49874393,0.00019713,2]
[315467421,1709062051276,-296.9414,0.00019813,2]
[315467422,1709062051295,-1599.87863998,0.0002,3]
[315467423,1709062051315,-250.0,0.00021144,2]
[315467424,1709062051335,-150.0,0.000212,2]
[315467425,1709062051354,-238.91,0.0002123,2]
[315467426,1709062051375,-179.0,0.00021237,2]
[315467427,1709062051395,-200.0,0.00021315,2]
[315467428,1709062051414,-200.0,0.0002138,2]
[315467429,1709062051437,-637.79,0.00021419,2]
[315467430,1709062051458,-1092.48886905,0.00021468,2]
[315467435,1709062160397,28000.0,0.0003,120]
[315467439,1709062231604,-280.40583477,0.000192,2]
[315467440,1709062231729,-219.59416523,0.000192,2]
[315467441,1709062231739,-286.11103477,0.0002,5]
[315467442,1709062231849,-740.0980354,0.0002,5]
[315467443,1709062231861,-562.1802,0.0002,5]
[315467544,1709062237612,-476.61072983,0.0002,5]
[315467545,1709062237622,-531.22694876,0.0002,5]
[315467546,1709062237685,-1011.03399856,0.0002,5]
[315467547,1709062237697,-475.73905268,0.0002,5]
[315467548,1709062237707,-539.26094732,0.0002,2]
[315467549,1709062237719,-1460.73905268,0.0002,2]
[315467550,1709062237728,-155.0,0.00021198,2]
[315467551,1709062237737,-769.46124463,0.00021199,2]
[315467552,1709062237758,-176.93656962,0.00021199,2]
[315467553,1709062237768,-284.58560959,0.00021199,2]
[315467554,1709062237777,-150.0,0.000212,2]
[315467555,1709062237787,-10677.53113095,0.00021468,2]
[315467556,1709062237796,-1000.0,0.00021497,2]
[315467557,1709062237806,-163.84,0.0002152,2]
[315467558,1709062237816,-154.0,0.00021537,2]
[315467559,1709062237825,-238.93,0.00021588,2]
[315467560,1709062237835,-250.0,0.00021635,2]
[315467561,1709062237849,-499.99,0.00021667,2]
[315467562,1709062237859,-162.74,0.00021762,2]
[315467563,1709062237871,-5687.64668984,0.000218,2]
[315467564,1709062237904,-1485.06541016,0.000218,2]
[315467565,1709062237915,-451.67,0.0002185,2]
[315467566,1709062237926,-5373.6406765,0.000219,2]
[315467567,1709062237941,-347.93676276,0.000219,2]
[315467568,1709062237953,-1309.85498084,0.000219,2]
[315467569,1709062237966,-968.5675799,0.000219,2]
[315467570,1709062237976,-155.9,0.00021918,2]
[315467571,1709062237986,-148.72478384,0.00022,2]
[315467572,1709062237999,-124.40070701,0.00022,2]
[315467573,1709062238009,-209.33113169,0.00022,2]
[315467574,1709062238019,-502.81201966,0.00022,2]
[315467575,1709062238028,-711.22668266,0.00022102,3]
[315467576,1709062238037,-943.20873667,0.00022102,3]
[315467577,1709062238057,-56.79126333,0.00022102,3]
[315467578,1709062238067,-5688.23364047,0.000222,2]
[315467579,1709062238078,-337.7925435,0.000222,2]
[315467580,1709062238093,-1254.48307782,0.000222,2]
[315467581,1709062238105,-561.23920336,0.000222,2]
[315467582,1709062238116,-1871.25153485,0.000222,2]
[315467583,1709062238126,-2457.0,0.000222,2]
[315467584,1709062238136,-152.0,0.00022237,3]
[315467585,1709062238146,-1500.0,0.000225,2]
[315467586,1709062238156,-1009.06976923,0.00022525,2]
[315467587,1709062238165,-154.0,0.00022633,2]
[315467588,1709062238175,-23809.67814724,0.00022638,6]
[315467597,1709062240158,-1210.86627424,0.00022638,6]
[315467604,1709062240219,-7784.49726634,0.00022638,6]
[315467606,1709062240231,-451.28926348,0.00022638,6]
[315467607,1709062240244,-2860.97974705,0.00022638,6]
[315467608,1709062240282,-300.0,0.00022638,6]
[315467609,1709062240968,-742.2968764,0.00022638,6]
[315467610,1709062241013,-5861.75273394,0.00022638,6]
[315467611,1709062241027,-2637.05134986,0.00022638,6]
[315467612,1709062241044,-1125.69007892,0.00022638,6]
[315467624,1709062242710,-433.9039445,0.00022638,6]
[315467625,1709062242937,-2883.37998734,0.00022638,6]
[315467626,1709062242953,-2173.13414827,0.00022638,6]
[315467627,1709062242966,-2491.31511663,0.00022638,6]
[315467628,1709062242995,-292.26,0.00022638,6]
[315467637,1709062245836,-6395.41533079,0.00022638,6]
[315467638,1709062245846,-14822.39015405,0.00022641,6]
[315467639,1709062245859,-61453.510265,0.00022645,6]
[315467640,1709062245869,-61453.510265,0.00022651,6]
[315467641,1709062245879,-449.56942858,0.00022661,6]
[315467642,1709062245892,-450.21701621,0.00022667,6]
[315467643,1709062245977,-3735.57523463,0.00022667,6]
[315467667,1709062402543,151.0,0.00028848,120]
[315467668,1709062595389,-155.0,0.00019611,2]
[315467669,1709062595410,-284.58560959,0.00019612,2]
[315467670,1709062595432,-155.0,0.00019613,2]
[315467671,1709062595455,-946.39781425,0.00019613,2]
[315467672,1709062595476,-406.5,0.00019617,2]
[315467673,1709062595497,-160.65538413,0.000199,2]
[315467674,1709062595517,-150.0,0.00019999,2]
[315467675,1709062595540,-300.0,0.00019999,2]
[315467676,1709062595563,-3000.0,0.0002,2]
[315467677,1709062595583,-1441.86119203,0.0002,2]
[315467678,1709062630835,-1042.13880797,0.0002,2]
[315467679,1709062630857,-160.65538402,0.00020151,2]
[315467680,1709062630879,-160.65538402,0.00020402,2]
[315467681,1709062630901,-160.65538402,0.00020653,2]
[315467682,1709062630924,-160.65538402,0.00020903,2]
[315467683,1709062654507,207.0,0.00020747,2]
[315467684,1709062947904,386.17,0.00019392,2]
[315467685,1709062964870,151.0,0.00029551,120]
[315467686,1709063002773,4420.16,0.0002,2]
[315467687,1709063226118,-155.0,0.00021159,2]
[315467688,1709063226138,-284.58560959,0.00021259,2]
[315467689,1709063226158,-500.0,0.0002126,2]
[315467690,1709063226186,-81.58559278,0.0002126,2]
[315467691,1709063263753,-600.0,0.00023,24]
[315467692,1709063288510,-595.46817984,0.00023835,30]
[315467693,1709063288609,-48804.53182016,0.00024,30]
[315467694,1709063290679,3396.56832,0.0002,3]
[315467695,1709063290899,3396.56832,0.0002,3]
[315467696,1709063291128,3396.56832,0.0002,3]
[315467697,1709063291323,3396.56832,0.0002,3]
[315467698,1709063291540,2482.63637595,0.0002,3]
[315467699,1709063310766,-50000.0,0.00024,30]
[315467700,1709063324390,151.0,0.00029251,120]
[315467701,1709063345264,-913.93194405,0.0002,3]
[315467702,1709063345285,-3396.56832,0.0002,3]
[315467703,1709063345316,-3396.56832,0.0002,3]
[315467704,1709063345342,-3396.56832,0.0002,3]
[315467705,1709063345362,-3396.56832,0.0002,3]
[315467706,1709063345385,-3396.56732,0.0002,3]
[315467707,1709063399014,414.94,0.00019323,2]
[315467717,1709063431775,-155.0,0.00020998,2]
[315467718,1709063431785,-155.0,0.00020999,2]
[315467719,1709063431794,-1661.44374651,0.00021,2]
[315467720,1709063431835,-15407.21235349,0.00021,2]
[315467721,1709063431845,-160.65538402,0.00021161,2]
[315467722,1709063431855,-768.53440722,0.0002126,2]
[315467723,1709063431865,-805.06,0.0002126,2]
[315467724,1709063431874,-500.0,0.0002126,2]
[315467725,1709063431885,-500.0,0.0002126,2]
[315467726,1709063431896,-1170.6,0.00021261,2]
[315467727,1709063431907,-250.0,0.00021261,2]
[315467728,1709063431916,-800.0,0.00021282,2]
[315467729,1709063431926,-250.0,0.00021289,2]
[315467730,1709063431936,-531.49,0.00021325,2]
[315467731,1709063431945,-160.65538402,0.00021409,2]
[315467732,1709063431955,-442.26,0.00021409,2]
[315467733,1709063431964,-200.0,0.00021422,2]
[315467734,1709063431974,-151.98,0.00021441,2]
[315467735,1709063431985,-623.95,0.00021441,2]
[315467736,1709063431995,-499.99,0.00021441,2]
[315467737,1709063432005,-300.02,0.0002145,2]
[315467738,1709063432014,-397.14,0.00021454,2]
[315467739,1709063432025,-414.94,0.00021587,2]
[315467740,1709063432035,-160.65538402,0.00021658,2]
[315467741,1709063432044,-8000.0,0.000219,2]
[315467742,1709063432053,-160.65538402,0.00021906,2]
[315467743,1709063432062,-152.05,0.00021918,2]
[315467744,1709063432071,-158.91,0.00021918,2]
[315467745,1709063432080,-2126.65,0.00021918,2]
[315467746,1709063432089,-151.98,0.00022,2]
[315467747,1709063432098,-1750.0,0.00022,3]
[315467748,1709063432107,-1000.0,0.00022,2]
[315467749,1709063432116,-500.0,0.00022,2]
[315467750,1709063432126,-259.69,0.00022,2]
[315467751,1709063432135,-206.0,0.00022018,2]
[315467752,1709063432147,-152.05,0.0002204,2]
[315467753,1709063432156,-154.22628642,0.000221,2]
[315467754,1709063432166,-237.61866712,0.00022102,3]
[315467755,1709063432176,-4511.88093336,0.00022102,3]
[315467756,1709063432186,-347.75738294,0.00022102,3]
[315467757,1709063432195,-8012.46780393,0.00022102,3]
[315467759,1709063432205,-243.66048755,0.00022102,3]
[315467761,1709063432215,-154.17803475,0.00022102,3]
[315467763,1709063432224,-329.16300695,0.00022102,3]
[315467765,1709063432234,-259.69,0.00022137,2]
[315467767,1709063432246,-160.65538402,0.00022155,2]
[315467769,1709063432255,-152.05,0.00022161,2]
[315467771,1709063432265,-800.0,0.00022164,2]
[315467772,1709063432276,-318.52,0.00022164,2]
[315467774,1709063432289,-1912.6448073,0.00022188,2]
[315467777,1709063432298,-292.95133809,0.00022188,2]
[315467780,1709063432307,-431.52136582,0.00022189,2]
[315467783,1709063432318,-34567.32528708,0.0002219,2]
[315467785,1709063432327,-8742.0,0.000222,2]
[315467787,1709063432337,-914.17529412,0.00022252,2]
[315467788,1709063432347,-508.11,0.00022274,2]
[315467791,1709063432359,-152.05,0.00022283,2]
[315467793,1709063432371,-165.81,0.00022289,2]
[315467795,1709063432380,-500.0,0.00022356,2]
[315467796,1709063432391,-154.2262864,0.00022377,2]
[315467797,1709063432405,-160.65538402,0.00022403,2]
[315467798,1709063432415,-152.05,0.00022405,2]
[315467799,1709063432424,-1000.0,0.000225,2]
[315467800,1709063432434,-2726.6063,0.000225,2]
[315467801,1709063432444,-152.05,0.00022527,2]
[315467802,1709063432454,-7783.0,0.00022542,2]
[315467803,1709063432463,-151.98,0.00022559,2]
[315467804,1709063432474,-378.72,0.0002259,3]
[315467805,1709063432483,-916.49584409,0.000226,2]
[315467806,1709063432493,-7476.7979,0.000226,2]
[315467807,1709063432503,-16783.4475,0.00022629,2]
[315467808,1709063432513,-3534.03855462,0.00022635,6]
[315467809,1709063432522,-1378.74204645,0.00022638,2]
[315467810,1709063432532,-152.05,0.00022648,2]
[315467811,1709063432541,-3534.03855462,0.00022649,6]
[315467812,1709063432551,-160.65538402,0.00022652,2]
[315467814,1709063432561,-1571.72910468,0.00022653,2]
[315467816,1709063432571,-154.2262864,0.00022653,2]
[315467818,1709063432581,-3534.03855462,0.00022655,6]
[315467820,1709063432591,-206.0,0.0002266,2]
[315467822,1709063432601,-27749.59954609,0.00022667,6]
[315467827,1709063432649,-29518.11846807,0.00022667,6]
[315467829,1709063432660,-449.56942858,0.00022667,6]
[315467831,1709063432670,-3176.81577349,0.00022673,6]
[315467834,1709063432683,-5347.53079088,0.00022673,6]
[315467836,1709063432696,-658.46,0.00022673,6]
[315467838,1709063432708,-388.42893379,0.00022673,6]
[315467844,1709063432757,-2429.3835345,0.00022673,6]
[315467846,1709063432769,-984.714344,0.00022673,6]
[315467848,1709063432781,-377.835594,0.00022673,6]
[315467850,1709063432793,-1459.22118339,0.00022673,6]
[315467852,1709063432803,-1377.78700525,0.00022676,2]
[315467854,1709063432816,-191.38284575,0.00022676,2]
[315467856,1709063432826,-173.302818,0.00022676,2]
[315467858,1709063432835,-4059.12341429,0.00022676,2]
[315467861,1709063432851,-7347.04049771,0.00022676,2]
[315467863,1709063432862,-4912.894324,0.00022676,2]
[315467865,1709063432871,-3534.03855462,0.00022676,6]
[315467867,1709063432881,-14822.39015405,0.00022679,6]
[315467869,1709063432890,-14822.39015405,0.00022683,6]
[315467871,1709063432903,-181.200001,0.00022684,2]
[315467873,1709063432912,-181.200001,0.00022684,2]
[315467875,1709063432922,-449.56942858,0.00022688,6]
[315467877,1709063432932,-232.09,0.0002269,3]
[315467879,1709063432942,-696.27,0.0002269,3]
[315467881,1709063432953,-449.56942858,0.00022691,6]
[315467883,1709063432963,-52026.50908839,0.000227,2]
[315467885,1709063432976,-1382.48075347,0.000227,2]
[315467887,1709063432989,-28409.08675814,0.000227,2]